[Event "*** Titled Tuesday Blitz"]
[Site "Chess.com"]
[Date "2020.04.21"]
[Round "8"]
[White "SketchyMoves"]
[Black "Noam_Vitenberg"]
[Result "1-0"]
[WhiteElo "2667"]
[BlackElo "2491"]
[TimeControl "180+1"]
[EndTime "11:39:04 PDT"]
[Termination "SketchyMoves won on time"]

1. b3 {[%clk 0:03:00.4]} 1... Nf6 {[%clk 0:02:57.1]} 2. Bb2 {[%clk 0:03:00.7]}
2... d5 {[%clk 0:02:57.1]} 3. Nf3 {[%clk 0:03:00.4]} 3... Bf5 {[%clk 0:02:57.1]}
4. e3 {[%clk 0:03:00.7]} 4... e6 {[%clk 0:02:55.1]} 5. Be2 {[%clk 0:03:00.8]}
5... Be7 {[%clk 0:02:52]} 6. Nh4 {[%clk 0:03:00.8]} 6... Be4 {[%clk 0:02:48.6]}
7. d3 {[%clk 0:03:00]} 7... Bg6 {[%clk 0:02:44.5]} 8. Nd2 {[%clk 0:02:59.6]}
8... Nbd7 {[%clk 0:02:31.8]} 9. a3 {[%clk 0:02:58.9]} 9... c6 {[%clk 0:02:31.3]}
10. h3 {[%clk 0:02:58.5]} 10... Qc7 {[%clk 0:02:29]} 11. O-O {[%clk 0:02:53.6]}
11... O-O {[%clk 0:02:28.2]} 12. Nxg6 {[%clk 0:02:49.1]} 12... hxg6 {[%clk
0:02:27.5]} 13. c4 {[%clk 0:02:41.9]} 13... a5 {[%clk 0:02:24]} 14. Rc1 {[%clk
0:02:39.5]} 14... Rac8 {[%clk 0:02:18.4]} 15. Qc2 {[%clk 0:02:38.4]} 15... Qb8
{[%clk 0:02:17.5]} 16. Qb1 {[%clk 0:02:38.1]} 16... b5 {[%clk 0:02:14.7]} 17.
Rfd1 {[%clk 0:02:34.7]} 17... Rfd8 {[%clk 0:02:13.5]} 18. Qa1 {[%clk 0:02:33.1]}
18... Qb7 {[%clk 0:02:06.3]} 19. Nf3 {[%clk 0:02:33.1]} 19... a4 {[%clk
0:01:48.7]} 20. b4 {[%clk 0:02:27.3]} 20... c5 {[%clk 0:01:45.2]} 21. cxd5
{[%clk 0:02:16.4]} 21... Nxd5 {[%clk 0:01:27.6]} 22. bxc5 {[%clk 0:02:10]} 22...
Nxc5 {[%clk 0:01:25.8]} 23. Nd2 {[%clk 0:02:08.1]} 23... Bf6 {[%clk 0:01:22.7]}
24. Bxf6 {[%clk 0:02:02.5]} 24... Nxf6 {[%clk 0:01:21.9]} 25. d4 {[%clk
0:01:58.3]} 25... Nfe4 {[%clk 0:00:43.3]} 26. Nxe4 {[%clk 0:01:44.6]} 26... Nxe4
{[%clk 0:00:42.4]} 27. Qb2 {[%clk 0:01:40.5]} 27... Rb8 {[%clk 0:00:28.1]} 28.
Bf3 {[%clk 0:01:36.2]} 28... Qd5 {[%clk 0:00:27]} 29. Rc5 {[%clk 0:01:28.4]}
29... Qb7 {[%clk 0:00:25]} 30. Rdc1 {[%clk 0:01:26]} 30... f5 {[%clk 0:00:22.8]}
31. Rc7 {[%clk 0:01:20.6]} 31... Qd5 {[%clk 0:00:20.9]} 32. Bxe4 {[%clk
0:01:11.2]} 32... Qxe4 {[%clk 0:00:19.3]} 33. Qb4 {[%clk 0:01:00.1]} 33... Re8
{[%clk 0:00:10.5]} 34. Rd7 {[%clk 0:00:58.2]} 34... Qh4 {[%clk 0:00:01.6]} 35.
Rcc7 {[%clk 0:00:55.5]} 35... Qf6 {[%clk 0:00:01.5]} 36. Qd6 {[%clk 0:00:41.1]}
36... Red8 {[%clk 0:00:01.1]} 37. Rxg7+ {[%clk 0:00:25.7]} 37... Qxg7 {[%clk
0:00:02]} 38. Qxe6+ {[%clk 0:00:24.3]} 38... Kh8 {[%clk 0:00:01.5]} 39. Rxg7
{[%clk 0:00:22.4]} 39... Kxg7 {[%clk 0:00:02.4]} 40. Qe7+ {[%clk 0:00:20.9]}
40... Kg8 {[%clk 0:00:01.2]} 41. h4 {[%clk 0:00:19]} 41... b4 {[%clk 0:00:01.6]}
42. axb4 {[%clk 0:00:17]} 42... a3 {[%clk 0:00:02.5]} 43. Qe6+ {[%clk
0:00:14.6]} 43... Kg7 {[%clk 0:00:02.2]} 44. Qe7+ {[%clk 0:00:13.3]} 44... Kg8
{[%clk 0:00:01.5]} 45. Qf6 {[%clk 0:00:13.8]} 1-0

[Event "*** Titled Tuesday Blitz"]
[Site "Chess.com"]
[Date "2020.04.21"]
[Round "8"]
[White "Grineva_Marianna"]
[Black "masteryoungK"]
[Result "0-1"]
[WhiteElo "2194"]
[BlackElo "2398"]
[TimeControl "180+1"]
[EndTime "11:39:05 PDT"]
[Termination "masteryoungK won on time"]

1. d4 {[%clk 0:03:00.9]} 1... Nf6 {[%clk 0:02:58.3]} 2. c4 {[%clk 0:02:57.4]}
2... g6 {[%clk 0:02:56.7]} 3. Nc3 {[%clk 0:02:56.3]} 3... d5 {[%clk 0:02:57.3]}
4. Bf4 {[%clk 0:02:48.3]} 4... Bg7 {[%clk 0:02:56.5]} 5. e3 {[%clk 0:02:45.8]}
5... O-O {[%clk 0:02:55.3]} 6. Rc1 {[%clk 0:02:44.4]} 6... c6 {[%clk 0:02:43.9]}
7. Nf3 {[%clk 0:02:25.2]} 7... Bg4 {[%clk 0:02:42.8]} 8. h3 {[%clk 0:02:22.6]}
8... Bxf3 {[%clk 0:02:41.9]} 9. Qxf3 {[%clk 0:02:23.5]} 9... Qb6 {[%clk
0:02:41.4]} 10. b3 {[%clk 0:02:16.9]} 10... Qa5 {[%clk 0:02:32.3]} 11. Qd1
{[%clk 0:01:34.4]} 11... Ne4 {[%clk 0:02:10.6]} 12. Qc2 {[%clk 0:01:33]} 12...
Nd7 {[%clk 0:02:05.8]} 13. Bd3 {[%clk 0:01:22.5]} 13... e5 {[%clk 0:02:04.9]}
14. dxe5 {[%clk 0:01:19]} 14... Nxe5 {[%clk 0:01:59.3]} 15. Bxe4 {[%clk
0:01:16.8]} 15... dxe4 {[%clk 0:01:59.5]} 16. Qxe4 {[%clk 0:01:03.5]} 16... Rad8
{[%clk 0:01:31.6]} 17. O-O {[%clk 0:00:51.9]} 17... Nd3 {[%clk 0:01:28.6]} 18.
Na4 {[%clk 0:00:26.6]} 18... Nxc1 {[%clk 0:01:25]} 19. Rxc1 {[%clk 0:00:27.5]}
19... Rfe8 {[%clk 0:01:22.9]} 20. Qf3 {[%clk 0:00:27.6]} 20... Qd2 {[%clk
0:01:19.6]} 21. Rf1 {[%clk 0:00:23.3]} 21... Qxa2 {[%clk 0:01:17.6]} 22. Nc5
{[%clk 0:00:21.7]} 22... b6 {[%clk 0:01:17.9]} 23. Nb7 {[%clk 0:00:20]} 23...
Rd2 {[%clk 0:01:07]} 24. Qxc6 {[%clk 0:00:18.9]} 24... Rf8 {[%clk 0:00:40.7]}
25. Bd6 {[%clk 0:00:18.2]} 25... Qxb3 {[%clk 0:00:38.7]} 26. Bxf8 {[%clk
0:00:17.1]} 26... Bxf8 {[%clk 0:00:39.6]} 27. Qc8 {[%clk 0:00:15.5]} 27... Kg7
{[%clk 0:00:38]} 28. Nd8 {[%clk 0:00:13.9]} 28... Bc5 {[%clk 0:00:20.4]} 29. Qc7
{[%clk 0:00:12.2]} 29... Qxc4 {[%clk 0:00:20.7]} 30. Nb7 {[%clk 0:00:06.8]}
30... Rc2 {[%clk 0:00:11.7]} 31. Qe5+ {[%clk 0:00:06.3]} 31... Kg8 {[%clk
0:00:10.9]} 32. Qe8+ {[%clk 0:00:06.1]} 32... Bf8 {[%clk 0:00:11.3]} 33. Nd8
{[%clk 0:00:05.5]} 33... Rd2 {[%clk 0:00:07.6]} 34. Ra1 {[%clk 0:00:04.3]} 34...
Qd5 {[%clk 0:00:05.5]} 35. Rxa7 {[%clk 0:00:01.2]} 35... Rd1+ {[%clk 0:00:03.6]}
36. Kh2 {[%clk 0:00:01.3]} 36... Qd6+ {[%clk 0:00:01.1]} 37. f4 {[%clk
0:00:01.4]} 37... Qd5 {[%clk 0:00:01.7]} 0-1

[Event "*** Titled Tuesday Blitz"]
[Site "Chess.com"]
[Date "2020.04.21"]
[Round "8"]
[White "Alexander_Moskalenko"]
[Black "Kezin_Roman"]
[Result "1-0"]
[WhiteElo "2903"]
[BlackElo "2748"]
[TimeControl "180+1"]
[EndTime "11:39:06 PDT"]
[Termination "Alexander_Moskalenko won by resignation"]

1. Nf3 {[%clk 0:03:00.2]} 1... d5 {[%clk 0:02:59.7]} 2. c4 {[%clk 0:03:01.1]}
2... d4 {[%clk 0:02:59.5]} 3. b4 {[%clk 0:02:55.5]} 3... g5 {[%clk 0:02:58.9]}
4. Bb2 {[%clk 0:02:50.5]} 4... c5 {[%clk 0:02:49.7]} 5. bxc5 {[%clk 0:02:38.7]}
5... Nc6 {[%clk 0:02:49.1]} 6. e3 {[%clk 0:02:39.2]} 6... e5 {[%clk 0:02:29.6]}
7. Nxe5 {[%clk 0:02:38.6]} 7... Nxe5 {[%clk 0:02:26.7]} 8. exd4 {[%clk
0:02:39.5]} 8... Ng6 {[%clk 0:02:19.1]} 9. Qe2+ {[%clk 0:02:20]} 9... Qe7 {[%clk
0:01:44]} 10. d5 {[%clk 0:02:20.9]} 10... Qxe2+ {[%clk 0:01:43.2]} 11. Bxe2
{[%clk 0:02:21.4]} 11... Bxc5 {[%clk 0:01:43.6]} 12. Bxh8 {[%clk 0:02:12.6]}
12... Nxh8 {[%clk 0:01:44.5]} 13. h4 {[%clk 0:02:03]} 13... g4 {[%clk
0:01:43.4]} 14. Nc3 {[%clk 0:02:01.7]} 14... Nf6 {[%clk 0:01:43.5]} 15. h5
{[%clk 0:01:55.6]} 15... Bd4 {[%clk 0:01:35.7]} 16. Rb1 {[%clk 0:01:52]} 16...
Bxc3 {[%clk 0:01:23.5]} 17. dxc3 {[%clk 0:01:52.9]} 17... Ne4 {[%clk 0:01:23.5]}
18. Bd3 {[%clk 0:01:37.4]} 18... f5 {[%clk 0:00:49.5]} 19. Bxe4 {[%clk
0:01:27.4]} 19... fxe4 {[%clk 0:00:50.4]} 20. c5 {[%clk 0:01:27.9]} 20... Nf7
{[%clk 0:00:50.7]} 21. Rb4 {[%clk 0:01:20]} 21... Ng5 {[%clk 0:00:43.4]} 22. h6
{[%clk 0:01:20.2]} 22... Kf7 {[%clk 0:00:41.5]} 23. Kd2 {[%clk 0:01:18.7]} 23...
Kf6 {[%clk 0:00:34.7]} 24. Ke3 {[%clk 0:01:16.3]} 24... a5 {[%clk 0:00:18.8]}
25. Rb6+ {[%clk 0:01:13.9]} 25... Kf5 {[%clk 0:00:17.1]} 26. Rh5 {[%clk
0:01:03.5]} 26... a4 {[%clk 0:00:15.5]} 27. c6 {[%clk 0:01:03.3]} 27... bxc6
{[%clk 0:00:14.8]} 28. Rxc6 {[%clk 0:00:53.4]} 28... Bd7 {[%clk 0:00:12]} 29.
Rc7 {[%clk 0:00:52.8]} 29... Be8 {[%clk 0:00:12.4]} 30. Rh1 {[%clk 0:00:42.8]}
30... Nf7 {[%clk 0:00:08]} 31. c4 {[%clk 0:00:40.6]} 31... Rd8 {[%clk
0:00:07.5]} 32. Kd4 {[%clk 0:00:35.6]} 32... Kg6 {[%clk 0:00:06.7]} 33. Rb7
{[%clk 0:00:29.3]} 33... Rc8 {[%clk 0:00:02.2]} 34. c5 {[%clk 0:00:27.5]} 34...
Kg5 {[%clk 0:00:01.8]} 35. c6 {[%clk 0:00:18.2]} 35... Nxh6 {[%clk 0:00:01.3]}
36. Rxh7 {[%clk 0:00:17.2]} 36... Nf5+ {[%clk 0:00:02.2]} 37. Kc5 {[%clk
0:00:17.6]} 37... Bg6 {[%clk 0:00:02.3]} 38. Rh8 {[%clk 0:00:17.2]} 38... Rc7
{[%clk 0:00:02.2]} 39. d6 {[%clk 0:00:16.3]} 39... Nxd6 {[%clk 0:00:03.1]} 40.
Kxd6 {[%clk 0:00:17.2]} 40... Ra7 {[%clk 0:00:03.3]} 41. c7 {[%clk 0:00:17.3]}
41... Bf5 {[%clk 0:00:04.2]} 42. R1h5+ {[%clk 0:00:14.3]} 1-0

[Event "*** Titled Tuesday Blitz"]
[Site "Chess.com"]
[Date "2020.04.21"]
[Round "8"]
[White "RaunakSadhwani2005"]
[Black "Caracternin123"]
[Result "0-1"]
[WhiteElo "2753"]
[BlackElo "2647"]
[TimeControl "180+1"]
[EndTime "11:39:06 PDT"]
[Termination "Caracternin123 won by resignation"]

1. e4 {[%clk 0:03:00.9]} 1... Nf6 {[%clk 0:02:59.5]} 2. e5 {[%clk 0:02:59.4]}
2... Nd5 {[%clk 0:02:59.8]} 3. d4 {[%clk 0:02:59.2]} 3... d6 {[%clk 0:03:00.3]}
4. Nf3 {[%clk 0:02:59.4]} 4... g6 {[%clk 0:03:00.7]} 5. Bc4 {[%clk 0:02:58.2]}
5... Nb6 {[%clk 0:03:01]} 6. Bb3 {[%clk 0:02:57.9]} 6... Bg7 {[%clk 0:03:01.4]}
7. Qe2 {[%clk 0:02:57.6]} 7... O-O {[%clk 0:03:01.4]} 8. h3 {[%clk 0:02:57.6]}
8... c5 {[%clk 0:03:00.6]} 9. dxc5 {[%clk 0:02:54.2]} 9... dxc5 {[%clk
0:03:01.5]} 10. O-O {[%clk 0:02:53.2]} 10... c4 {[%clk 0:03:01.6]} 11. Bxc4
{[%clk 0:02:50.9]} 11... Nxc4 {[%clk 0:03:02.5]} 12. Qxc4 {[%clk 0:02:51.4]}
12... Nc6 {[%clk 0:03:02.5]} 13. Bf4 {[%clk 0:02:46.3]} 13... Qb6 {[%clk
0:02:57.8]} 14. Qb3 {[%clk 0:02:40.6]} 14... Bf5 {[%clk 0:02:54.8]} 15. Qxb6
{[%clk 0:02:32.9]} 15... axb6 {[%clk 0:02:55.7]} 16. c3 {[%clk 0:02:33.2]} 16...
Ra5 {[%clk 0:02:41.1]} 17. Nbd2 {[%clk 0:02:16.5]} 17... Rfa8 {[%clk 0:02:17.1]}
18. a3 {[%clk 0:02:16.4]} 18... Rb5 {[%clk 0:02:12]} 19. b4 {[%clk 0:02:05.2]}
19... Nxe5 {[%clk 0:02:12.2]} 20. Bxe5 {[%clk 0:01:47.7]} 20... Bxe5 {[%clk
0:02:13.1]} 21. Nxe5 {[%clk 0:01:39.2]} 21... Rxe5 {[%clk 0:02:14]} 22. Nc4
{[%clk 0:01:39.7]} 22... Re6 {[%clk 0:02:09.2]} 23. Rfd1 {[%clk 0:01:32.6]}
23... Rc6 {[%clk 0:02:05]} 24. Ne3 {[%clk 0:01:26.7]} 24... Rxc3 {[%clk
0:02:04.8]} 25. Nxf5 {[%clk 0:01:25.9]} 25... gxf5 {[%clk 0:02:05.7]} 26. Rd7
{[%clk 0:01:26.3]} 26... e6 {[%clk 0:01:34.1]} 27. Rxb7 {[%clk 0:01:25]} 27...
Rcxa3 {[%clk 0:01:34.2]} 28. Rxa3 {[%clk 0:01:23.6]} 28... Rxa3 {[%clk
0:01:35.1]} 29. Rxb6 {[%clk 0:01:23.9]} 29... Rb3 {[%clk 0:01:35.5]} 30. g3
{[%clk 0:01:21.9]} 30... Kg7 {[%clk 0:01:34.3]} 31. Kg2 {[%clk 0:01:22.1]} 31...
h5 {[%clk 0:01:33.4]} 32. h4 {[%clk 0:01:21.8]} 32... e5 {[%clk 0:01:33.1]} 33.
Rb8 {[%clk 0:01:20.7]} 33... e4 {[%clk 0:01:32.4]} 34. b5 {[%clk 0:01:19.7]}
34... Rb2 {[%clk 0:01:31.9]} 35. Kf1 {[%clk 0:01:19.5]} 35... Kf6 {[%clk
0:01:31.7]} 36. b6 {[%clk 0:01:16.5]} 36... f4 {[%clk 0:01:25.7]} 37. Rh8 {[%clk
0:00:42.3]} 37... f3 {[%clk 0:00:30.5]} 38. Ke1 {[%clk 0:00:35.8]} 38... Kg6
{[%clk 0:00:29.3]} 39. Rb8 {[%clk 0:00:33.2]} 39... Kf5 {[%clk 0:00:24.7]} 40.
b7 {[%clk 0:00:30.3]} 40... f6 {[%clk 0:00:18.3]} 41. Kd1 {[%clk 0:00:22.2]}
41... e3 {[%clk 0:00:18.6]} 42. Kc1 {[%clk 0:00:09.6]} 42... Rxb7 {[%clk
0:00:13.5]} 43. Rxb7 {[%clk 0:00:07.2]} 43... exf2 {[%clk 0:00:14]} 44. Kd2
{[%clk 0:00:06.3]} 44... f1=Q {[%clk 0:00:13.6]} 0-1

[Event "*** Titled Tuesday Blitz"]
[Site "Chess.com"]
[Date "2020.04.21"]
[Round "8"]
[White "stoleriu"]
[Black "KrolPawel92OnTwitch"]
[Result "1-0"]
[WhiteElo "2529"]
[BlackElo "2676"]
[TimeControl "180+1"]
[EndTime "11:39:06 PDT"]
[Termination "stoleriu won by resignation"]

1. e4 {[%clk 0:03:00.9]} 1... c5 {[%clk 0:02:59.5]} 2. Nf3 {[%clk 0:02:57.8]}
2... e6 {[%clk 0:02:59.4]} 3. b3 {[%clk 0:02:54.4]} 3... Nc6 {[%clk 0:02:58.5]}
4. Bb2 {[%clk 0:02:53.9]} 4... Nf6 {[%clk 0:02:58]} 5. d3 {[%clk 0:02:52.1]}
5... d5 {[%clk 0:02:57.6]} 6. Nbd2 {[%clk 0:02:46]} 6... Be7 {[%clk 0:02:57.4]}
7. g3 {[%clk 0:02:45.3]} 7... O-O {[%clk 0:02:57.4]} 8. Bg2 {[%clk 0:02:45]}
8... d4 {[%clk 0:02:57.9]} 9. O-O {[%clk 0:02:44.9]} 9... e5 {[%clk 0:02:58.3]}
10. Nc4 {[%clk 0:02:42.8]} 10... Nd7 {[%clk 0:02:56.3]} 11. a4 {[%clk
0:02:42.7]} 11... Rb8 {[%clk 0:02:54.1]} 12. Ne1 {[%clk 0:02:40.2]} 12... b6
{[%clk 0:02:49.5]} 13. f4 {[%clk 0:02:39.9]} 13... a6 {[%clk 0:02:48.3]} 14. Nf3
{[%clk 0:02:37.3]} 14... f6 {[%clk 0:02:47.3]} 15. Nh4 {[%clk 0:02:31.7]} 15...
b5 {[%clk 0:02:44.4]} 16. axb5 {[%clk 0:02:30]} 16... axb5 {[%clk 0:02:44.5]}
17. Nd2 {[%clk 0:02:30.9]} 17... Nb6 {[%clk 0:02:41]} 18. Bf3 {[%clk 0:02:18.9]}
18... Be6 {[%clk 0:02:37.8]} 19. Bg4 {[%clk 0:02:17.5]} 19... Bf7 {[%clk
0:02:37.8]} 20. Ndf3 {[%clk 0:02:05.3]} 20... g6 {[%clk 0:02:34.7]} 21. fxe5
{[%clk 0:01:58.6]} 21... fxe5 {[%clk 0:02:29.6]} 22. Ng2 {[%clk 0:01:58.1]}
22... h5 {[%clk 0:02:11.8]} 23. Bh3 {[%clk 0:01:54.8]} 23... g5 {[%clk
0:02:12.2]} 24. Bf5 {[%clk 0:01:51.1]} 24... c4 {[%clk 0:02:06]} 25. bxc4 {[%clk
0:01:27.8]} 25... bxc4 {[%clk 0:02:05]} 26. Ba3 {[%clk 0:01:27.7]} 26... g4
{[%clk 0:01:44.3]} 27. Bxe7 {[%clk 0:01:17.9]} 27... Qxe7 {[%clk 0:01:42.5]} 28.
Nfh4 {[%clk 0:01:18]} 28... Qg5 {[%clk 0:01:35.4]} 29. Rf2 {[%clk 0:01:00.7]}
29... Ra8 {[%clk 0:01:26.2]} 30. Rxa8 {[%clk 0:00:57.7]} 30... Rxa8 {[%clk
0:01:27.1]} 31. Bh7+ {[%clk 0:00:40.4]} 31... Kg7 {[%clk 0:01:22.6]} 32. Qf1
{[%clk 0:00:40.2]} 32... Nd8 {[%clk 0:00:58.9]} 33. Rf5 {[%clk 0:00:21.4]} 33...
Qh6 {[%clk 0:00:57.2]} 34. Rxf7+ {[%clk 0:00:21]} 34... Nxf7 {[%clk 0:00:50]}
35. Nf5+ {[%clk 0:00:20.2]} 35... Kxh7 {[%clk 0:00:50.4]} 36. Nxh6 {[%clk
0:00:21.1]} 36... Nxh6 {[%clk 0:00:50.8]} 37. Nh4 {[%clk 0:00:18.7]} 37... cxd3
{[%clk 0:00:45.8]} 38. cxd3 {[%clk 0:00:19.6]} 38... Ra3 {[%clk 0:00:42.1]} 39.
Qf6 {[%clk 0:00:17.5]} 39... Ra1+ {[%clk 0:00:26.2]} 40. Kf2 {[%clk 0:00:17.2]}
40... Ra2+ {[%clk 0:00:26]} 41. Ke1 {[%clk 0:00:17.2]} 41... Na4 {[%clk
0:00:09.1]} 42. Qg6+ {[%clk 0:00:16.4]} 42... Kh8 {[%clk 0:00:09.6]} 43. Qxh6+
{[%clk 0:00:16.6]} 43... Kg8 {[%clk 0:00:10.5]} 44. Qe6+ {[%clk 0:00:16]} 44...
Kg7 {[%clk 0:00:10.9]} 45. Qxa2 {[%clk 0:00:16.9]} 45... Nc3 {[%clk 0:00:10.9]}
46. Qa7+ {[%clk 0:00:16.5]} 1-0

[Event "*** Titled Tuesday Blitz"]
[Site "Chess.com"]
[Date "2020.04.21"]
[Round "8"]
[White "MusicCityMaster"]
[Black "NastaJ"]
[Result "0-1"]
[WhiteElo "2276"]
[BlackElo "1950"]
[TimeControl "180+1"]
[EndTime "11:39:06 PDT"]
[Termination "NastaJ won by checkmate"]

1. e4 {[%clk 0:03:00.9]} 1... c6 {[%clk 0:02:59]} 2. d3 {[%clk 0:02:57.9]} 2...
d5 {[%clk 0:02:58.5]} 3. Nd2 {[%clk 0:02:58]} 3... e5 {[%clk 0:02:57.4]} 4. Ngf3
{[%clk 0:02:57.7]} 4... Bg4 {[%clk 0:02:56.7]} 5. h3 {[%clk 0:02:53.5]} 5...
Bxf3 {[%clk 0:02:54.9]} 6. Qxf3 {[%clk 0:02:52.9]} 6... Nf6 {[%clk 0:02:53.3]}
7. g3 {[%clk 0:02:51.8]} 7... Nbd7 {[%clk 0:02:52.4]} 8. Bg2 {[%clk 0:02:51.7]}
8... Bd6 {[%clk 0:02:50.1]} 9. O-O {[%clk 0:02:51.3]} 9... O-O {[%clk
0:02:49.9]} 10. Qe2 {[%clk 0:02:43.8]} 10... Nb6 {[%clk 0:02:45.8]} 11. a4
{[%clk 0:02:41.2]} 11... a5 {[%clk 0:02:42.8]} 12. b3 {[%clk 0:02:41.1]} 12...
Re8 {[%clk 0:02:30.8]} 13. Bb2 {[%clk 0:02:38.1]} 13... Rc8 {[%clk 0:02:21]} 14.
Nf3 {[%clk 0:02:36.8]} 14... Nbd7 {[%clk 0:02:08.6]} 15. Nh4 {[%clk 0:02:35.9]}
15... Bb8 {[%clk 0:02:04.7]} 16. Nf5 {[%clk 0:02:31.1]} 16... Nf8 {[%clk
0:01:56.9]} 17. Kh1 {[%clk 0:02:13.5]} 17... Ne6 {[%clk 0:01:56.6]} 18. Rae1
{[%clk 0:02:05.5]} 18... d4 {[%clk 0:01:42.9]} 19. Bc1 {[%clk 0:01:58.8]} 19...
b5 {[%clk 0:01:42.3]} 20. Bd2 {[%clk 0:01:49.4]} 20... Nc5 {[%clk 0:01:26.4]}
21. axb5 {[%clk 0:01:46.4]} 21... cxb5 {[%clk 0:01:26]} 22. f4 {[%clk
0:01:28.3]} 22... Na6 {[%clk 0:01:19.5]} 23. fxe5 {[%clk 0:01:20.3]} 23... Bxe5
{[%clk 0:01:18.6]} 24. Bg5 {[%clk 0:01:18.8]} 24... Nb4 {[%clk 0:01:14.9]} 25.
Rc1 {[%clk 0:01:08.9]} 25... Qc7 {[%clk 0:01:14.6]} 26. Qf3 {[%clk 0:00:57.9]}
26... Na2 {[%clk 0:00:58.9]} 27. Nxg7 {[%clk 0:00:51.2]} 27... Nxc1 {[%clk
0:00:32.3]} 28. Bxf6 {[%clk 0:00:48.2]} 28... Bxf6 {[%clk 0:00:32]} 29. Qxf6
{[%clk 0:00:40.9]} 29... Ne2 {[%clk 0:00:31.8]} 30. Rf3 {[%clk 0:00:27.6]} 30...
Nxg3+ {[%clk 0:00:30.7]} 31. Kg1 {[%clk 0:00:26.3]} 31... Ne2+ {[%clk
0:00:27.7]} 32. Kf2 {[%clk 0:00:21.1]} 32... Nc3 {[%clk 0:00:24.4]} 33. Nxe8
{[%clk 0:00:19.4]} 33... Rxe8 {[%clk 0:00:22.4]} 34. Rg3+ {[%clk 0:00:18.2]}
34... Kf8 {[%clk 0:00:21.1]} 35. h4 {[%clk 0:00:16.5]} 35... Qe5 {[%clk
0:00:15.4]} 36. Qh6+ {[%clk 0:00:15.1]} 36... Ke7 {[%clk 0:00:14.7]} 37. Rf3
{[%clk 0:00:14.5]} 37... Rg8 {[%clk 0:00:12.7]} 38. Bh3 {[%clk 0:00:13.7]} 38...
Qh2+ {[%clk 0:00:11.6]} 39. Kf1 {[%clk 0:00:12.6]} 39... Qe2# {[%clk 0:00:11.1]}
0-1

[Event "*** Titled Tuesday Blitz"]
[Site "Chess.com"]
[Date "2020.04.21"]
[Round "8"]
[White "AsaHoffmann"]
[Black "GmSergioBarrientos"]
[Result "0-1"]
[WhiteElo "2356"]
[BlackElo "2574"]
[TimeControl "180+1"]
[EndTime "11:39:07 PDT"]
[Termination "GmSergioBarrientos won by resignation"]

1. d4 {[%clk 0:02:52.5]} 1... Nf6 {[%clk 0:02:58.7]} 2. Bg5 {[%clk 0:02:51.4]}
2... e6 {[%clk 0:02:55.9]} 3. Nd2 {[%clk 0:02:49.9]} 3... c5 {[%clk 0:02:54.8]}
4. e3 {[%clk 0:02:49.3]} 4... cxd4 {[%clk 0:02:54.9]} 5. exd4 {[%clk 0:02:49]}
5... Be7 {[%clk 0:02:55.3]} 6. Bd3 {[%clk 0:02:47.8]} 6... b6 {[%clk 0:02:53.2]}
7. Ngf3 {[%clk 0:02:46.9]} 7... Bb7 {[%clk 0:02:53.2]} 8. c3 {[%clk 0:02:45.8]}
8... h6 {[%clk 0:02:53.2]} 9. Bh4 {[%clk 0:02:45.5]} 9... d6 {[%clk 0:02:53.7]}
10. O-O {[%clk 0:02:44.7]} 10... Nbd7 {[%clk 0:02:54.3]} 11. Qe2 {[%clk
0:02:44.3]} 11... O-O {[%clk 0:02:54.7]} 12. h3 {[%clk 0:02:44.1]} 12... Re8
{[%clk 0:02:55.2]} 13. Bg3 {[%clk 0:02:43.9]} 13... a6 {[%clk 0:02:55.2]} 14. a4
{[%clk 0:02:42.3]} 14... Qc7 {[%clk 0:02:55.4]} 15. Rfe1 {[%clk 0:02:39.6]}
15... Bf8 {[%clk 0:02:55.9]} 16. Nc4 {[%clk 0:02:35.6]} 16... Qc6 {[%clk
0:02:55]} 17. Qf1 {[%clk 0:02:26.9]} 17... Nd5 {[%clk 0:02:42.5]} 18. Ncd2
{[%clk 0:02:11.3]} 18... N7f6 {[%clk 0:02:40.9]} 19. Ne4 {[%clk 0:02:10.1]}
19... Red8 {[%clk 0:02:28.1]} 20. c4 {[%clk 0:02:09.6]} 20... Nb4 {[%clk
0:02:20.9]} 21. Nxf6+ {[%clk 0:02:08.8]} 21... gxf6 {[%clk 0:02:21.8]} 22. Be4
{[%clk 0:02:04.1]} 22... Qc8 {[%clk 0:02:09.1]} 23. Rac1 {[%clk 0:01:54.5]}
23... f5 {[%clk 0:02:00.3]} 24. Bxb7 {[%clk 0:01:49.3]} 24... Qxb7 {[%clk
0:02:01.2]} 25. Qe2 {[%clk 0:01:48.5]} 25... Bg7 {[%clk 0:01:57.5]} 26. Qe3
{[%clk 0:01:44]} 26... b5 {[%clk 0:01:51.5]} 27. axb5 {[%clk 0:01:40.1]} 27...
axb5 {[%clk 0:01:52.4]} 28. c5 {[%clk 0:01:35.3]} 28... dxc5 {[%clk 0:01:49.1]}
29. dxc5 {[%clk 0:01:35.1]} 29... Nd3 {[%clk 0:01:45.1]} 30. c6 {[%clk
0:01:33.3]} 30... Qc8 {[%clk 0:01:37.2]} 31. c7 {[%clk 0:01:29.8]} 31... Rd7
{[%clk 0:01:35.5]} 32. Qb6 {[%clk 0:01:19.3]} 32... f4 {[%clk 0:01:15.7]} 33.
Bh4 {[%clk 0:01:18.2]} 33... Nxe1 {[%clk 0:01:11.4]} 34. Nxe1 {[%clk 0:01:16.5]}
34... Be5 {[%clk 0:01:07.8]} 35. Bd8 {[%clk 0:01:14.1]} 35... Rxd8 {[%clk
0:01:00.2]} 36. cxd8=Q+ {[%clk 0:01:10.5]} 36... Qxd8 {[%clk 0:01:01.1]} 37.
Qxb5 {[%clk 0:01:04.4]} 37... Qd2 {[%clk 0:00:54.5]} 38. Rb1 {[%clk 0:01:01]}
38... Bd4 {[%clk 0:00:51]} 39. Qf1 {[%clk 0:00:56]} 39... Bb6 {[%clk 0:00:44.3]}
40. Nf3 {[%clk 0:00:54.9]} 40... Qc2 {[%clk 0:00:44.3]} 41. b4 {[%clk 0:00:52]}
41... Bxf2+ {[%clk 0:00:44.2]} 42. Kh1 {[%clk 0:00:48.8]} 42... Ra2 {[%clk
0:00:42]} 43. b5 {[%clk 0:00:44.8]} 43... Bb6 {[%clk 0:00:42]} 44. Rc1 {[%clk
0:00:41.2]} 44... Qe4 {[%clk 0:00:36.2]} 45. Re1 {[%clk 0:00:37.2]} 45... Be3
{[%clk 0:00:35.8]} 46. b6 {[%clk 0:00:35.8]} 46... Rb2 {[%clk 0:00:35.8]} 47.
Qa6 {[%clk 0:00:27.2]} 47... Qc2 {[%clk 0:00:33.9]} 48. Qa8+ {[%clk 0:00:19.7]}
48... Kg7 {[%clk 0:00:33.1]} 49. Nh4 {[%clk 0:00:18.5]} 49... Qf2 {[%clk
0:00:30.7]} 50. Rd1 {[%clk 0:00:15.6]} 50... Qxh4 {[%clk 0:00:22.9]} 51. b7
{[%clk 0:00:15.1]} 51... Rxg2 {[%clk 0:00:22.3]} 52. Kxg2 {[%clk 0:00:11.7]}
52... Qg3+ {[%clk 0:00:22.4]} 0-1